fUSD/lending_fUSD_20240108
["ID","MTS","AMOUNT","RATE_DAILY","PERIOD"]
[310725448,1704678085503,-551.6192803,0.0004,120]
[310725449,1704678085527,-6672.53934448,0.0004,120]
[310725450,1704678085554,-1000.0,0.0004,120]
[310725451,1704678085578,-1046.0588926,0.0004,60]
[310725452,1704678085602,-1311.57502611,0.0004,30]
[310725453,1704678085626,-1039.0,0.0004,30]
[310725454,1704678085655,-1000.0,0.0004,120]
[310725455,1704678085680,-1225.0973748,0.0004,120]
[310725456,1704678085704,-583.38957833,0.0004,30]
[310725457,1704678085727,-1000.0,0.0004,30]
[310725458,1704678085958,-20009.3688712,0.0004,30]
[310725459,1704678085984,-10000.0,0.0004,30]
[310725460,1704678086013,-24001.60105991,0.0004,30]
[310725461,1704678086040,-7456.34178729,0.0004,30]
[310725462,1704678086066,-10634.73370178,0.0004,30]
[310725463,1704678086091,-12303.16309714,0.0004,30]
[310725464,1704678086117,-9359.11808031,0.0004,30]
[310725465,1704678086141,-900.0,0.0004,41]
[310725466,1704678086171,-22538.06038173,0.0004,30]
[310725467,1704678086196,-32246.313208,0.0004,30]
[310725468,1704678086222,-13794.29049165,0.0004,30]
[310725469,1704678086247,-11836.40743587,0.0004,30]
[310725470,1704678086271,-13975.75382371,0.0004,30]
[310725471,1704678086299,-11668.66786943,0.0004,30]
[310725472,1704678086322,-8882.5,0.00040033,77]
[310725473,1704678086347,-948.34,0.00040109,81]
[310725474,1704678086371,-1027.8,0.00040109,81]
[310725475,1704678086398,-948.34,0.00040328,83]
[310725476,1704678086422,-1027.8,0.00040328,83]
[310725477,1704678086446,-948.34,0.00040547,85]
[310725478,1704678086470,-1027.8,0.00040547,85]
[310725479,1704678086494,-948.34,0.00040767,87]
[310725480,1704678086517,-1027.8,0.00040767,87]
[310725481,1704678086540,-200.0,0.000408,120]
[310725482,1704678086563,-10000.0,0.000409,30]
[310725483,1704678086586,-33208.46644892,0.000409,60]
[310725484,1704678097854,-150.0,0.00032877,30]
[310725485,1704678097878,-150.0,0.00032877,30]
[310725486,1704678097902,-150.0,0.00032877,30]
[310725487,1704678097929,-150.0,0.00032877,30]
[310725488,1704678097952,-150.0,0.00032877,30]
[310725489,1704678097976,-150.0,0.00032877,30]
[310725490,1704678098283,-150.0,0.00032877,30]
[310725491,1704678098308,-150.0,0.00032877,30]
[310725492,1704678098331,-150.0,0.00032877,30]
[310725493,1704678098354,-150.0,0.00032877,30]
[310725494,1704678098377,-150.0,0.00032877,30]
[310725495,1704678098401,-150.0,0.00032877,30]
[310725496,1704678098426,-150.0,0.00032877,30]
[310725497,1704678098449,-150.0,0.00032877,30]
[310725498,1704678098472,-165.12273255,0.00032877,30]
[310725499,1704678099086,-4716.0,0.0003697,60]
[310725500,1704678099110,-4716.0,0.0003698,60]
[310725501,1704678099133,-4716.0,0.0003698,60]
[310725502,1704678099178,-182.0,0.0003699,60]
[310725503,1704678099201,-4716.0,0.0003699,60]
[310725504,1704678099223,-4716.0,0.0003699,60]
[310725505,1704678099346,-199.1261653,0.000388,30]
[310725506,1704678099397,-428.84393316,0.0004,120]
[310725507,1704678099423,-80678.50112085,0.000409,60]
[310725508,1704678099446,-268.173802,0.000409,60]
[310725509,1704678099469,-150.0,0.000409,30]
[310725510,1704678099492,-3689.2315328,0.0004098,30]
[310725511,1704678099515,-948.34,0.00040986,89]
[310725512,1704678099540,-1027.8,0.00040986,89]
[310725513,1704678099563,-500.0,0.00040987,31]
[310725514,1704678099586,-1500.0,0.00041,30]
[310725515,1704678099610,-262.65351369,0.00041,30]
[310725516,1704678099633,-50000.227163,0.00041,120]
[310725517,1704678099657,-4000.0,0.00041,120]
[310725518,1704678099681,-1091.87,0.00041,30]
[310725519,1704678099704,-1000.0,0.00041,120]
[310725520,1704678099728,-1317.716955,0.00041,30]
[310725521,1704678099751,-6870.0,0.00041,30]
[310725522,1704678099773,-1000.0,0.00041,30]
[310725523,1704678099797,-2700.06868444,0.00041,120]
[310725524,1704678099821,-900.0,0.00041,42]
[310725525,1704678099843,-337.0966189,0.00041095,120]
[310725526,1704678099865,-500.0,0.00041095,120]
[310725527,1704678099886,-186.62744187,0.00041095,30]
[310725528,1704678099911,-1000.0,0.00041095,30]
[310725529,1704678099933,-1000.0,0.00041095,30]
[310725530,1704678099956,-157.11387721,0.00041095,30]
[310725531,1704678099980,-1000.0,0.00041095,30]
[310725532,1704678100003,-1000.0,0.00041095,30]
[310725533,1704678100026,-1091.89529619,0.00041095,30]
[310725534,1704678100051,-523.89493284,0.00041095,30]
[310725535,1704678100075,-948.48857493,0.00041205,91]
[310725536,1704678100098,-1027.82914343,0.00041205,91]
[310725537,1704678100122,-318.0,0.0004137,90]
[310725538,1704678100144,-458.0,0.0004137,90]
[310725539,1704678100168,-1000.0,0.0004137,120]
[310725540,1704678100194,-1000.0,0.000418,30]
[310725541,1704678100217,-571985.95394443,0.000418,30]
[310725542,1704678100240,-500000.0,0.000418,34]
[310725543,1704678100262,-90000.0,0.000419,30]
[310725544,1704678100286,-500.0,0.00041987,33]
[310725545,1704678100307,-1700.0,0.00042,30]
[310725546,1704678100330,-1000.0,0.00042,120]
[310725547,1704678100352,-150.0,0.00042,30]
[310725548,1704678100374,-852.72090561,0.00042,120]
[310725549,1704678100396,-15067.790211,0.00042,30]
[310725550,1704678100419,-499.96877816,0.00042,30]
[310725551,1704678100442,-3850.01838472,0.00042,120]
[310725552,1704678100465,-2305.79826238,0.00042,30]
[310725553,1704678100489,-33000.0,0.00042,30]
[310725554,1704678100511,-29720.29068151,0.00042,120]
[310725555,1704678100535,-1000.0,0.00042,120]
[310725556,1704678100558,-117571.18162918,0.00042,30]
[310725557,1704678100581,-900.0,0.00042,43]
[310725558,1704678100604,-500.0,0.00042006,30]
[310725559,1704678100628,-549.0,0.00042288,90]
[310725560,1704678100650,-458.0,0.00042288,90]
[310725561,1704678100675,-173.68412752,0.000425,30]
[310725562,1704678100698,-2000.0,0.000425,30]
[310725563,1704678100720,-999.99999901,0.0004255,120]
[310725564,1704678101002,-500.0,0.00042554,30]
[310725565,1704678101028,-500000.0,0.000428,33]
[310725566,1704678101052,-90000.0,0.000429,30]
[310725567,1704678101075,-889.0,0.000429,30]
[310725568,1704678101099,-500.0,0.00042987,35]
[310725569,1704678101122,-261.60713531,0.00042998,60]
[310725570,1704678101150,-300.0,0.00043,30]
[310725571,1704678101175,-800.0,0.00043,60]
[310725572,1704678101199,-150.0,0.00043,30]
[310725573,1704678101222,-260162.436178,0.00043,30]
[310725574,1704678101247,-4000.0,0.00043,120]
[310725575,1704678101271,-5000.0,0.00043,60]
[310725576,1704678101296,-17820.24840919,0.00043,120]
[310725577,1704678101319,-22248.83645595,0.00043,30]
[310725578,1704678101343,-617.99565503,0.00043,120]
[310725579,1704678101393,-24604.52101634,0.00043,30]
[310725580,1704678101422,-900.0,0.00043,44]
[310725581,1704678101445,-235.41457978,0.00043,30]
[310725582,1704678101467,-150.0,0.00043,37]
[310725583,1704678101490,-500.0,0.00043102,30]
[310725584,1704678101514,-318.0,0.00043151,90]
[310725585,1704678101536,-9688.8,0.00043365,96]
[310725586,1704678101559,-49403.00948864,0.00043381,30]
[310725587,1704678101581,-172.14319002,0.00043513,30]
[310725588,1704678101604,-211.86485264,0.00043513,120]
[310725589,1704678101626,-500.0,0.0004365,30]
[310725590,1704678101649,-15000.0,0.0004367,30]
[310725591,1704678101674,-4744.44,0.000438,90]
[310725592,1704678101697,-3582.29,0.000438,120]
[310725593,1704678101720,-800.0,0.00043836,30]
[310725594,1704678101741,-661.14,0.00043836,30]
[310725595,1704678101780,4716.0,0.0003697,60]
[310725596,1704678101898,4716.0,0.0003699,60]
[310725597,1704678101986,4716.0,0.0003698,60]
[310725598,1704678102117,4716.0,0.0003699,60]
[310725599,1704678102219,4725.24,0.0003698,60]
[310725600,1704678103466,32237.76783051,0.00039,40]
[310725601,1704678103608,259.359,0.0004224,30]
[310725602,1704678105544,150.0,0.0004224,30]
[310725603,1704678106633,3227.99329609,0.0004,30]
[310725604,1704678107280,240.48,0.0004,30]
[310725605,1704678110493,500.0,0.00041722,30]
[310725606,1704678110725,158.13885783,0.0004,30]
[310725607,1704678111267,500.0,0.0004227,30]
[310725608,1704678112336,500.0,0.00042818,30]
[310725609,1704678113366,500.0,0.00043366,30]
[310725610,1704678117273,150.0,0.00043366,30]
[310725651,1704678632874,-450.037073,0.00024862,2]
[310725653,1704678632886,-416.16881714,0.00024862,2]
[310725655,1704678632895,-524.10489141,0.00024862,2]
[310725657,1704678632905,-153.12931415,0.00024863,2]
[310725658,1704678632914,-93.43106827,0.00024863,2]
[310725659,1704678632927,-604.40663653,0.00024863,2]
[310725660,1704678632937,-155.0,0.00024863,2]
[310725661,1704678632946,-134.31006559,0.00024863,2]
[310725662,1704678632957,-707.09938573,0.00024863,2]
[310725663,1704678632966,-232.7018871,0.00024864,2]
[310725664,1704678632976,-467.77503312,0.00024896,2]
[310725665,1704678632986,-162.4777916,0.000249,2]
[310725666,1704678632995,-72.06073934,0.00025,3]
[310725667,1704678633007,-277.93926066,0.00025,3]
[310725668,1704678633017,-46.90142943,0.00025265,2]
[310725669,1704678633032,-298.25857057,0.00025265,2]
[310725670,1704678633041,-400.0,0.00027,3]
[310725671,1704678633050,-150.0,0.00027083,2]
[310725672,1704678633059,-418.5936166,0.00027104,2]
[310725673,1704678633071,-331.4063834,0.00027104,2]
[310725674,1704678633080,-150.0,0.00027139,2]
[310725675,1704678633089,-251.28604722,0.00027177,2]
[310725676,1704678633102,-48.71395278,0.00027177,2]
[310725677,1704678633112,-1457.74846331,0.00027178,2]
[310725678,1704678633123,-363.36373079,0.00027178,2]
[310725679,1704678633135,-1714.20324022,0.00027178,2]
[310725680,1704678633147,-67.24456568,0.00027178,2]
[310725681,1704678633156,-1940.0,0.000272,2]
[310725682,1704678633166,-250.0,0.00027203,2]
[310725683,1704678633176,-250.0,0.00027209,2]
[310725684,1704678633185,-185.71,0.00027212,10]
[310725685,1704678633195,-497.5,0.00027216,2]
[310725686,1704678633205,-439.56,0.00027233,2]
[310725687,1704678633214,-523.78,0.00027256,2]
[310725688,1704678633224,-719.85,0.00027267,2]
[310725689,1704678633233,-9999.99,0.00027267,2]
[310725690,1704678633242,-715.88,0.00027269,2]
[310725691,1704678633252,-736.92,0.00027271,2]
[310725692,1704678633261,-84.75095806,0.0002728,2]
[310725693,1704678633274,-260.40904194,0.0002728,2]
[310725694,1704678633283,-732.44,0.00027336,2]
[310725695,1704678633293,-736.48,0.0002737,2]
[310725696,1704678633302,-727.74,0.00027371,2]
[310725697,1704678633312,-710.99,0.00027371,2]
[310725698,1704678633322,-727.84,0.00027373,2]
[310725699,1704678633331,-2500.0,0.00027397,2]
[310725700,1704678633341,-500.0,0.00027397,2]
[310725701,1704678633351,-152.64,0.00027397,2]
[310725702,1704678633360,-250.0,0.000274,2]
[310725703,1704678633369,-2804.79,0.00027426,2]
[310725704,1704678633378,-210.0,0.00027441,2]
[310725705,1704678633388,-155.51,0.00027447,2]
[310725706,1704678633397,-200.0,0.00027524,2]
[310725707,1704678633406,-345.16,0.00027529,2]
[310725708,1704678633416,-405.69,0.00027548,2]
[310725709,1704678633425,-560.44,0.00027633,2]
[310725710,1704678633434,-155.51,0.00027651,2]
[310725711,1704678633443,-737.55,0.00027686,2]
[310725712,1704678633452,-711.05,0.00027837,2]
[310725713,1704678633462,-712.28,0.00027839,2]
[310725714,1704678633471,-713.44,0.00027839,2]
[310725715,1704678633479,-155.51,0.00027855,2]
[310725716,1704678633489,-200.0,0.00027862,2]
[310725717,1704678633498,-250.0,0.00027862,2]
[310725718,1704678633507,-168.53,0.00027919,2]
[310725719,1704678633516,-3627.73,0.00027945,2]
[310725720,1704678633526,-162.47779158,0.00027999,2]
[310725721,1704678633535,-155.51,0.0002806,2]
[310725722,1704678633545,-345.16,0.00028258,2]
[310725723,1704678633554,-155.51,0.00028264,2]
[310725724,1704678633563,-155.51,0.00028468,2]
[310725725,1704678633572,-155.51,0.00028673,2]
[310725726,1704678633582,-170.53718133,0.00028677,7]
[310725727,1704678633591,-1116.24873132,0.00028677,7]
[310725728,1704678633605,-487.88437853,0.00028677,7]
[310725729,1704678633614,-262.03,0.00028871,2]
[310725730,1704678633623,-155.51,0.00028877,2]
[310725731,1704678633632,-450.0,0.00029,3]
[310725732,1704678633642,-345.16,0.00029237,2]
[310725733,1704678633651,-717.24,0.00029355,2]
[310725734,1704678633660,-764.3295,0.00029698,2]
[310725735,1704678633670,-200.0,0.00029741,3]
[310725736,1704678633679,-1079.59450894,0.00029755,2]
[310725737,1704678633688,-345.16,0.00029793,2]
[310725738,1704678633697,-20062.03409081,0.00029798,2]
[310725739,1704678633709,-572.78766273,0.00029798,2]
[310725740,1704678633720,-1766.89073922,0.00029798,2]
[310725741,1704678633740,-780.97964211,0.00029798,2]
[310725742,1704678633751,-1148.03921887,0.00029798,2]
[310725743,1704678633763,-482.20653933,0.00029798,2]
[310725744,1704678633775,-5056.24041853,0.00029798,2]
[310725745,1704678633786,-301.67264997,0.00029798,2]
[310725746,1704678633846,-469.13636334,0.00029798,2]
[310725747,1704678633864,-596.93917681,0.00029798,2]
[310725748,1704678633877,-2112.58083225,0.00029798,2]
[310725749,1704678633901,-714.17186603,0.00029798,2]
[310725750,1704678633912,-511.08210116,0.00029798,2]
[310725751,1704678633925,-970.0,0.00029798,2]
[310725752,1704678633937,-10258.94764045,0.00029798,2]
[310725753,1704678633951,-1067.034,0.00029798,2]
[310725754,1704678633962,-885.4525,0.00029798,2]
[310725755,1704678633973,-938.959998,0.00029798,2]
[310725756,1704678634052,-1705.90980672,0.00029798,2]
[310725757,1704678634064,-1922.86375946,0.00029798,2]
[310725758,1704678634076,-9675.12989421,0.00029798,2]
[310725759,1704678634086,-6923.0018,0.00029798,2]
[310725760,1704678634096,-195.53565876,0.000298,2]
[310725761,1704678634109,-174.23,0.000298,2]
[310725762,1704678634118,-156.70521366,0.00029896,2]
[310725763,1704678634127,-182.56029229,0.00029896,2]
[310725764,1704678634136,-781.54607185,0.00029896,2]
[310725765,1704678634146,-155.24629107,0.00029896,2]
[310725766,1704678634155,-172.0084023,0.00029896,2]
[310725767,1704678634164,-191.19369137,0.00029896,2]
[310725768,1704678634173,-162.37235754,0.00029897,2]
[310725769,1704678634183,-265.55726143,0.00029897,2]
[310725770,1704678634192,-2740.16302054,0.00029897,2]
[310725771,1704678634202,-72785.7773,0.00029898,2]
[310725772,1704678634211,-1000.0,0.000299,2]
[310725773,1704678634221,-3000.0,0.000299,2]
[310725774,1704678634230,-2500.0,0.000299,2]
[310725775,1704678634239,-2130.08801719,0.00029998,2]
[310725776,1704678634249,-550.04245284,0.00029998,2]
[310725777,1704678634258,-596.45959812,0.00029998,2]
[310725778,1704678634268,-155.36412235,0.00029998,2]
[310725779,1704678634278,-1512.87812572,0.00029999,2]
[310725780,1704678634288,-3420.21106737,0.0003,3]
[310725781,1704678634298,-2054.86242539,0.0003,4]
[310725782,1704678634308,-8817.86898177,0.0003,4]
[310725783,1704678634317,-155.0,0.0003,2]
[310725784,1704678634326,-48252.57623121,0.0003,2]
[310725785,1704678634335,-210.0,0.0003,2]
[310725786,1704678634344,-500.0,0.0003,3]
[310725787,1704678634356,-174.646787,0.0003,2]
[310725788,1704678634367,-157.85,0.0003,2]
[310725789,1704678634388,-393.4021576,0.00030018,2]
[310725790,1704678634409,-200.0,0.00030118,3]
[310725791,1704678634431,-5450.34,0.00030137,2]
[310725792,1704678634455,-150.51915078,0.000302,2]
[310725793,1704678634475,-345.16,0.00030215,2]
[310725794,1704678634497,-153.84,0.00030227,2]
[310725795,1704678634510,-774.08908201,0.00030262,4]
[310725796,1704678634519,-1964.895123,0.000303,2]
[310725797,1704678634528,-527.1345096,0.000303,2]
[310725798,1704678634538,-464.3991946,0.00030361,2]
[310725799,1704678634547,-2000.0,0.00030362,2]
[310725800,1704678634556,-200.0,0.00030362,2]
[310725801,1704678634565,-3000.0,0.00030362,2]
[310725802,1704678634575,-1521.4452,0.00030372,2]
[310725803,1704678634585,-490.16189667,0.00030479,4]
[310725804,1704678634594,-205.82257284,0.0003048,4]
[310725805,1704678634606,-155.60628368,0.0003048,4]
[310725806,1704678634614,-157.0,0.00030566,2]
[310725807,1704678634623,-42429.99216679,0.00030594,2]
[310725808,1704678634635,-3810.67841491,0.00030594,2]
[310725814,1704678638265,-1000.0,0.00030137,2]
[310725815,1704678638280,-3000.0,0.00030137,2]
[310725816,1704678638291,-3509.85070088,0.00030594,2]
[310725817,1704678638306,-285.49172499,0.00030594,2]
[310725818,1704678638390,-49963.98699243,0.00030594,2]
[310725819,1704678638403,-597.3758981,0.00030635,2]
[310725820,1704678638418,-4402.6241019,0.00030635,2]
[310725821,1704678638430,-439.56,0.00030637,2]
[310725822,1704678638442,-165.41,0.00030687,2]
[310725823,1704678638454,-391.0,0.00030772,5]
[310725824,1704678638466,-163.63,0.00030772,2]
[310725825,1704678638478,-201.0,0.0003084,2]
[310725826,1704678638491,-3000.0,0.000309,2]
[310725827,1704678638503,-1257.85,0.000309,2]
[310725828,1704678638515,-67665.97437352,0.00030925,2]
[310725829,1704678638530,-16561.16842648,0.00030925,2]
[310725830,1704678638542,-150.0,0.0003094,2]
[310725831,1704678638554,-150.0,0.0003094,2]
[310725832,1704678638566,-5000.0,0.00030984,3]
[310725833,1704678638578,-28601.62469846,0.00031,2]
[310725834,1704678638599,-453.15164937,0.00031,2]
[310725835,1704678638614,-774.21122856,0.00031,2]
[310725836,1704678638690,-20171.01242361,0.00031,2]
[310725837,1704678638702,-497.0,0.00031,3]
[310725838,1704678638714,-3042.18392567,0.00031,2]
[310725839,1704678638727,-500.0,0.00031,3]
[310725840,1704678638739,-600.0,0.00031,32]
[310725841,1704678638751,-500.0,0.00031,3]
[310725842,1704678638762,-7194.26920809,0.00031036,2]
[310725843,1704678638774,-560.44,0.00031087,2]
[310725844,1704678638786,-267.22537825,0.0003109,2]
[310725845,1704678638799,-165.41,0.00031091,2]
[310725846,1704678638810,-162.47779158,0.00031098,2]
[310725847,1704678638822,-4984.34611578,0.000311,2]
[310725848,1704678638834,-3251.9303777,0.00031111,5]
[310725849,1704678638846,-7194.26920809,0.00031131,2]
[310725850,1704678638859,-153.84,0.00031143,2]
[310725851,1704678638871,-1031.13393611,0.0003117,2]
[310725852,1704678638883,-267.22537825,0.0003119,2]
[310725853,1704678638895,-345.16,0.00031193,2]
[310725854,1704678638907,-163.0817255,0.00031197,2]
[310725855,1704678638918,-457.05836234,0.00031198,2]
[310725856,1704678638929,-33423.03072026,0.00031198,4]
[310725857,1704678638942,-362.14358588,0.00031198,4]
[310725858,1704678638953,-12311.88799218,0.00031198,2]
[310725859,1704678638965,-286.10092215,0.00031198,4]
[310725860,1704678638976,-2617.03255327,0.00031198,4]
[310725861,1704678638988,-38624.25723323,0.00031198,4]
[310725862,1704678639004,-429.73880918,0.00031198,4]
[310725863,1704678639020,-1840.01178555,0.00031198,4]
[310725864,1704678639043,-417.121379,0.00031198,4]
[310725865,1704678639058,-443.77,0.00031198,4]
[310725866,1704678639073,-1022.14348552,0.00031198,4]
[310725867,1704678639087,-698.98004566,0.00031198,4]
[310725868,1704678639102,-370.9210067,0.00031198,4]
[310725872,1704678640861,-347.45122971,0.00030915,10]
[310725873,1704678640913,-112.66877029,0.00030915,10]
[310725874,1704678640922,-4260.73122971,0.00031198,4]
[310725875,1704678641626,-125771.91278991,0.00031198,4]
[310725909,1704678648873,-76736.34598668,0.00031198,4]
[310725910,1704678648883,-1008.92568065,0.00031198,4]
[310725911,1704678648892,-524.2260989,0.00031198,4]
[310725912,1704678648902,-475.32930263,0.00031198,4]
[310725913,1704678648911,-1917.97681154,0.00031198,4]
[310725914,1704678648920,-894.35969795,0.00031198,4]
[310725915,1704678648930,-391.43280556,0.00031198,4]
[310725916,1704678648939,-3864.04808598,0.00031198,4]
[310725917,1704678648948,-518.16604549,0.00031198,4]
[310725918,1704678648958,-1749.93664353,0.00031198,4]
[310725919,1704678648968,-7448.56630641,0.00031198,4]
[310725920,1704678648977,-155.25154108,0.00031199,2]
[310725921,1704678648987,-150.0,0.00031199,2]
[310725922,1704678648996,-1000.0,0.00031199,2]
[310725923,1704678649005,-1000.0,0.00031199,2]
[310725924,1704678649015,-1000.0,0.00031199,2]
[310725925,1704678649028,-1000.0,0.00031199,2]
[310725926,1704678649038,-1000.0,0.00031199,2]
[310725927,1704678649047,-1000.0,0.00031199,2]
[310725928,1704678649056,-353.0,0.000312,5]
[310725929,1704678649065,-1095447.70390489,0.000312,2]
[310725930,1704678649075,-328768.87732422,0.000312,2]
[310725931,1704678649085,-266099.24932276,0.000312,2]
[310725932,1704678649095,-45099.93224628,0.000312,2]
[310725933,1704678649104,-1010.54,0.000312,4]
[310725934,1704678649115,-190.620865,0.000312,7]
[310725935,1704678649125,-190.620865,0.000312,7]
[310725936,1704678649134,-7194.26920809,0.00031226,2]
[310725937,1704678649144,-527.1345096,0.000313,2]
[310725938,1704678649154,-7194.26920809,0.00031321,2]
[310725939,1704678649163,-4984.34611578,0.00031355,2]
[310725940,1704678649173,-7194.26920809,0.00031415,2]
[310725941,1704678649183,-201.0,0.0003143,2]
[310725942,1704678649192,-208.0,0.0003143,2]
[310725943,1704678649202,-500.0,0.000315,2]
[310725944,1704678649223,-7194.26920809,0.0003151,2]
[310725945,1704678649235,-500.0,0.00031551,7]
[310725946,1704678649245,-500.0,0.00031556,2]
[310725947,1704678649255,-500.0,0.00031556,2]
[310725948,1704678649265,-456.0,0.00031556,2]
[310725949,1704678649275,-7194.26920809,0.00031605,2]
[310725950,1704678649568,-4984.34611578,0.00031609,3]
[310725951,1704678649601,-1000.0,0.00031699,2]
[310725952,1704678649613,-7194.26920809,0.000317,2]
[310725953,1704678649623,-163.63,0.00031734,2]
[310725954,1704678649632,-707.09069785,0.00031761,15]
[310725955,1704678649642,-336.68036356,0.00031761,4]
[310725956,1704678649652,-155.0,0.00031761,4]
[310725957,1704678649661,-155.28376448,0.00031761,4]
[310725958,1704678649671,-155.63140025,0.00031761,4]
[310725959,1704678649680,-7663.49471758,0.00031764,7]
[310725960,1704678649690,-12414.41853912,0.00031764,7]
[310725961,1704678649700,-9922.45596168,0.00031764,7]
[310725962,1704678649709,-7130.85258688,0.00031764,7]
[310725963,1704678649719,-267.22537825,0.0003179,2]
[310725964,1704678649729,-150.0,0.00031799,2]
[310725965,1704678649739,-304.43914163,0.00031799,2]
[310725966,1704678649749,-325515.192165,0.000318,2]
[310725967,1704678649759,-190.620865,0.000318,7]
[310725968,1704678649769,-190.620865,0.000318,7]
[310725969,1704678649779,-4984.34611578,0.00031864,3]
[310725970,1704678649789,-55555.0,0.0003188,3]
[310725971,1704678649800,-255591.59359102,0.000319,2]
[310725972,1704678649809,-250.0,0.000319,2]
[310725973,1704678649818,-150.58932971,0.000319,2]
[310725974,1704678649828,-4930.078331,0.000319,2]
[310725975,1704678649837,-5000.0,0.000319,2]
[310725976,1704678649848,-150.0,0.00031979,2]
[310725977,1704678649858,-863161.07986407,0.0003198,15]
[310725978,1704678649868,-190.620865,0.0003198,7]
[310725979,1704678649878,-190.620865,0.0003198,7]
[310725980,1704678649888,-500.0,0.00031999,4]
[310725981,1704678649898,-500.0,0.00031999,4]
[310725982,1704678649907,-500.0,0.00031999,4]
[310725983,1704678649917,-420.0,0.00031999,4]
[310725984,1704678649927,-500.0,0.00031999,4]
[310725985,1704678649937,-500.0,0.00031999,4]
[310725986,1704678649952,-500.0,0.00031999,4]
[310725987,1704678649962,-264.33068921,0.00031999,4]
[310725988,1704678649973,-500.0,0.00031999,4]
[310725989,1704678649983,-500.0,0.00031999,4]
[310725990,1704678649994,-500.0,0.00031999,4]
[310725991,1704678650004,-500.0,0.00031999,4]
[310725992,1704678650014,-245.12835873,0.00031999,4]
[310725993,1704678650025,-500.0,0.00031999,4]
[310725994,1704678650038,-500.0,0.00031999,4]
[310725995,1704678650049,-500.0,0.00031999,4]
[310725996,1704678650060,-500.0,0.00031999,4]
[310725997,1704678650071,-192.88918823,0.00031999,4]
[310725998,1704678650082,-500.0,0.00031999,4]
[310725999,1704678650092,-366.99363292,0.00031999,2]
[310726000,1704678650102,-406.51432652,0.00031999,4]
[310726001,1704678650114,-501.72106674,0.00031999,2]
[310726002,1704678650125,-165.57469361,0.00031999,2]
[310726003,1704678650135,-466.65167757,0.00031999,4]
[310726004,1704678650145,-154.47582266,0.00031999,2]
[310726005,1704678650155,-356.25094504,0.00031999,4]
[310726006,1704678650165,-100000.0,0.00032,2]
[310726007,1704678650175,-297.1247831,0.00032,4]
[310726008,1704678650185,-479.76,0.00032,2]
[310726009,1704678650195,-1000.0,0.00032,3]
[310726010,1704678650206,-1000.0,0.00032,4]
[310726011,1704678650216,-487.9164046,0.00032,4]
[310726012,1704678650226,-848733.06345461,0.00032,4]
[310726013,1704678650236,-200.47441339,0.00032,2]
[310726014,1704678650245,-1000.0,0.00032,2]
[310726015,1704678650255,-133683.18762023,0.00032,4]
[310726016,1704678650265,-3506.64688292,0.00032,2]
[310726017,1704678650276,-20000.0,0.00032,2]
[310726018,1704678650287,-600.0,0.00032,33]
[310726019,1704678650297,-500.0,0.00032,3]
[310726020,1704678650308,-150.0,0.00032,2]
[310726021,1704678650318,-190.620865,0.00032,7]
[310726022,1704678650328,-190.620865,0.00032,7]
[310726023,1704678650338,-201.0,0.0003203,2]
[310726024,1704678650348,-208.0,0.0003203,2]
[310726025,1704678650359,-345.16,0.00032057,2]
[310726026,1704678650369,-153.84,0.00032058,2]
[310726027,1704678650379,-4984.34611578,0.00032118,3]
[310726028,1704678650389,-345.16,0.00032172,2]
[310726029,1704678650400,-157.85,0.000322,2]
[310726030,1704678650410,-157.85,0.000322,2]
[310726031,1704678650420,-527.1345096,0.000323,2]